bitfinex/quotes_SOLUSD_20251018
["timestamp","ask_amount","ask_price","bid_price","bid_amount"]
[1760774813385,7.58871749,187.19,187.15,0.68]
[1760774813576,7.58871749,187.19,187.16,5.34302201]
[1760774813778,30.46871749,187.19,187.16,5.34302201]
[1760774813979,31.15871749,187.19,187.16,5.34302201]
[1760774814787,31.15871749,187.19,187.15,5.3433075]
[1760774814974,31.15871749,187.19,187.15,6.0233075]
[1760774814975,8.27871749,187.19,187.15,6.0233075]
[1760774816202,0.5,187.23,187.16,0.79975472]
[1760774816493,0.5,187.23,187.16,62.79975472]
[1760774816494,7.58871749,187.22,187.16,62.79975472]
[1760774816671,7.58871749,187.22,187.17,0.68]
[1760774817003,8.27871749,187.22,187.18,6.02245111]
[1760774818001,8.08871749,187.23,187.19,0.68]
[1760774818369,0.5,187.23,187.2,0.68]
[1760774818575,7.58871749,187.24,187.2,62.68]
[1760774818782,0.5,187.23,187.2,62.68]
[1760774819203,0.69,187.22,187.2,67.34181027]
[1760774819516,4.27806057,187.21,187.17,5.34251861]
[1760774819722,3.77806057,187.2,187.17,67.34251861]
[1760774820293,3.08806057,187.22,187.18,0.68]
[1760774820606,0.5,187.21,187.18,0.68]
[1760774820812,3.58806057,187.22,187.18,0.68]
[1760774821201,4.27806057,187.22,187.19,5.34216571]
[1760774821716,3.77806057,187.21,187.18,5.34238652]
[1760774821919,3.08806057,187.2,187.18,5.34238652]
[1760774822120,3.08806057,187.21,187.18,5.34238652]
[1760774822513,3.08806057,187.22,187.18,5.34238652]
[1760774822822,0.5,187.21,187.18,5.34238652]
[1760774823002,4.27806057,187.21,187.18,5.34238652]
[1760774823506,3.08806057,187.2,187.18,5.34238652]
[1760774823902,3.77806057,187.21,187.18,5.34238652]
[1760774824516,3.08806057,187.22,187.18,68.00238652]
[1760774824700,3.08806057,187.23,187.19,0.66]
[1760774824900,0.5,187.22,187.19,0.66]
[1760774825500,3.08806057,187.23,187.2,6.00160736]
[1760774826129,3.08806057,187.23,187.2,5.34160736]
[1760774826800,3.08806057,187.23,187.19,5.34216571]
[1760774827020,3.08806057,187.23,187.19,6.00216571]
[1760774827422,3.08806057,187.26,187.2,0.66]
[1760774827630,3.08806057,187.27,187.21,0.11535288]
[1760774827803,3.08806057,187.29,187.22,0.66]
[1760774828002,3.08806057,187.29,187.23,0.11534055]
[1760774828214,3.08806057,187.3,187.23,0.11534055]
[1760774828417,3.08806057,187.3,187.24,0.66]
[1760774828620,1.16,187.32,187.24,62.66]
[1760774828621,0.66,187.31,187.24,62.66]
[1760774828922,3.08806057,187.32,187.26,18.69059061]
[1760774829125,3.08806057,187.32,187.27,0.77531591]
[1760774829423,3.08806057,187.33,187.28,0.66]
[1760774829619,3.08806057,187.33,187.29,0.66]
[1760774829816,3.08806057,187.34,187.3,0.66]
[1760774830037,3.08806057,187.35,187.27,10.99179112]
[1760774830214,3.08806057,187.38,187.31,0.66]
[1760774830406,0.66,187.41,187.32,10.99176033]
[1760774830604,3.74806057,187.41,187.33,0.66]
[1760774830929,3.74806057,187.41,187.35,5.33760341]
[1760774831226,3.74806057,187.41,187.35,5.99760341]
[1760774831432,7.5777124,187.41,187.35,19.34161195]
[1760774831610,8.0777124,187.4,187.35,19.34161195]
[1760774831922,8.0777124,187.4,187.28,0.77622459]
[1760774831923,7.5777124,187.36,187.28,0.77622459]
[1760774832105,7.5777124,187.34,187.29,16.21578857]
[1760774832306,7.5777124,187.35,187.3,0.77621217]
[1760774832512,7.5777124,187.35,187.31,0.66]
[1760774832734,0.5,187.34,187.29,5.33931336]
[1760774833018,7.5777124,187.33,187.3,5.33902829]
[1760774833221,7.5777124,187.31,187.29,5.3393002]
[1760774833526,7.5777124,187.3,187.29,5.3393002]
[1760774833729,0.5,187.33,187.27,5.33988359]
[1760774834022,7.5777124,187.3,187.27,19.34959256]
[1760774834207,23.16432314,187.37,187.28,0.66]
[1760774834412,30.4577124,187.34,187.28,0.66]
[1760774834607,7.5777124,187.35,187.29,10.99966434]
[1760774834813,7.5777124,187.31,187.27,14.00970897]
[1760774835114,7.5777124,187.31,187.28,14.00899615]
[1760774835316,7.5777124,187.33,187.29,0.66]
[1760774835723,7.5777124,187.33,187.3,0.66]
[1760774836024,7.5777124,187.33,187.3,62.66]
[1760774836218,7.5777124,187.33,187.3,62.0]
[1760774836645,7.5777124,187.31,187.28,62.12361506]
[1760774836801,7.5777124,187.29,187.28,67.33959846]
[1760774838330,7.5777124,187.29,187.28,62.0]
[1760774838530,8.2377124,187.29,187.28,62.0]
[1760774838711,8.2377124,187.29,187.23,13.35221478]
[1760774838712,8.2377124,187.29,187.23,75.35221478]
[1760774839023,7.5777124,187.27,187.24,18.69258704]
[1760774839234,7.5777124,187.28,187.25,0.66]
[1760774839405,22.88,187.3,187.25,0.66]
[1760774839611,22.88,187.3,187.24,18.69258704]
[1760774839612,7.5777124,187.29,187.26,0.66]
[1760774839817,7.5777124,187.3,187.27,0.66]
[1760774840029,7.5777124,187.3,187.27,62.66]
[1760774840532,7.5777124,187.3,187.28,5.33959846]
[1760774841041,7.5777124,187.31,187.28,5.33959846]
[1760774841209,7.5777124,187.31,187.29,0.66]
[1760774841530,7.5777124,187.31,187.28,19.34859461]
[1760774841714,7.5777124,187.3,187.28,5.33959846]
[1760774842111,7.5777124,187.32,187.3,62.0]
[1760774842325,30.4577124,187.33,187.31,0.66]
[1760774842510,7.5777124,187.35,187.32,5.99845825]
[1760774842712,7.5777124,187.37,187.33,0.66]
[1760774842906,7.5777124,187.39,187.34,0.66]
[1760774843125,7.5777124,187.4,187.35,0.66]
[1760774843332,7.5777124,187.4,187.36,0.66]
[1760774843640,7.5777124,187.4,187.32,18.68460388]
[1760774843641,7.5777124,187.4,187.37,0.66]
[1760774843824,7.5777124,187.4,187.37,62.66]
[1760774844530,7.5777124,187.4,187.38,5.33674885]
[1760774844914,7.5777124,187.39,187.38,5.33674885]
[1760774845236,23.54,187.42,187.38,5.33674885]
[1760774845421,7.5777124,187.39,187.38,5.33674885]
[1760774847435,7.5777124,187.4,187.38,5.33674885]
[1760774847912,7.5777124,187.39,187.37,67.33698831]
[1760774848236,7.5777124,187.38,187.37,67.33698831]
[1760774849329,8.2377124,187.38,187.37,62.0]
[1760774850035,8.2377124,187.38,187.37,67.33703367]
[1760774850836,7.5777124,187.38,187.37,67.33703367]
[1760774851035,8.2377124,187.38,187.37,62.0]
[1760774851218,7.5777124,187.38,187.37,62.0]
[1760774851745,8.2377124,187.38,187.32,13.34546989]
[1760774852040,7.5777124,187.35,187.32,13.34546989]
[1760774852224,7.5777124,187.35,187.32,14.00546989]
[1760774852635,7.5777124,187.33,187.31,5.33874325]
[1760774852816,8.7377124,187.32,187.28,5.33959846]
[1760774853016,7.5777124,187.29,187.28,5.33959846]
[1760774853330,0.66,187.31,187.28,19.34859461]
[1760774853331,7.5777124,187.31,187.28,19.34859461]
[1760774853534,7.5777124,187.3,187.28,5.99959846]
[1760774853714,7.5777124,187.29,187.28,5.99959846]
[1760774853917,7.5777124,187.29,187.28,5.33959846]
[1760774854428,1.16,187.32,187.28,5.33959846]
[1760774854429,7.5777124,187.3,187.28,5.33959846]
[1760774855435,7.5777124,187.29,187.27,18.68935846]
[1760774855760,7.5777124,187.29,187.27,19.34935846]
[1760774856432,7.5777124,187.29,187.27,18.68935846]
[1760774856822,1.16,187.32,187.27,18.68935846]
[1760774856823,1.16,187.32,187.27,19.34935846]
[1760774857036,7.5777124,187.29,187.27,19.34935846]
[1760774857452,5.02755743,187.29,187.27,19.34935846]
[1760774857764,5.02755743,187.31,187.28,0.66]
[1760774858153,5.02755743,187.3,187.27,18.68935846]
[1760774858356,5.02755743,187.31,187.27,19.40935846]
[1760774858956,5.02755743,187.3,187.27,19.40935846]
[1760774859837,0.66,187.32,187.27,19.40935846]
[1760774860055,5.02755743,187.3,187.27,19.40935846]
[1760774860856,5.68755743,187.32,187.27,19.40935846]
[1760774861260,5.68755743,187.32,187.27,18.68935846]
[1760774861462,5.68755743,187.32,187.27,19.40935846]
[1760774862043,0.28432314,187.37,187.28,28.57395984]
[1760774862262,22.88,187.38,187.28,28.57395984]
[1760774862480,22.88,187.38,187.29,2.71999999]
[1760774862635,22.88,187.38,187.3,3.25390281]
[1760774862838,0.1,187.43,187.32,18.68460388]
[1760774863067,0.1,187.43,187.37,0.28432314]
[1760774863290,0.1,187.43,187.39,11.16079835]
[1760774863573,0.1,187.43,187.42,0.28432314]
[1760774863742,0.1,187.43,187.42,12.41435933]
[1760774865048,0.1,187.43,187.42,17.74996919]
[1760774866160,0.1,187.5,187.43,10.87647521]
[1760774866360,0.1,187.5,187.46,0.28432314]
[1760774866539,0.1,187.5,187.47,1.25341867]
[1760774867239,0.1,187.5,187.48,6.05390228]
[1760774867457,0.1,187.5,187.49,0.72]
[1760774868546,0.1,187.5,187.49,6.58697956]
[1760774869861,0.1,187.5,187.49,6.05361779]
[1760774870063,0.1,187.52,187.49,30.54846062]
[1760774870373,0.1,187.52,187.51,16.49384725]
[1760774870546,0.1,187.52,187.51,5.3330489]
[1760774870754,0.1,187.52,187.51,6.0530489]
[1760774871865,5.78755743,187.52,187.46,13.33610109]
[1760774872048,5.02755743,187.49,187.47,5.3341868]
[1760774872249,5.68755743,187.49,187.47,5.3341868]
[1760774872449,0.66,187.5,187.47,5.3341868]
[1760774873070,5.02755743,187.49,187.47,5.3341868]
[1760774873277,0.1,187.52,187.48,11.59647521]
[1760774873569,0.76,187.52,187.49,0.39253432]
[1760774873754,5.68755743,187.51,187.47,19.06218812]
[1760774873952,5.12755743,187.52,187.48,0.72]
[1760774874254,0.1,187.52,187.49,0.72]
[1760774874578,0.1,187.52,187.5,0.72]
[1760774874750,0.1,187.52,187.5,0.392579]
[1760774875651,0.1,187.52,187.5,1.112579]
[1760774875851,0.1,187.52,187.51,5.3330489]
[1760774877468,0.1,187.52,187.51,6.0530489]
[1760774878067,0.1,187.52,187.51,5.3330489]
[1760774878470,0.1,187.52,187.51,17.21384725]
[1760774878777,0.1,187.52,187.51,5.3330489]
[1760774879663,0.1,187.52,187.51,16.49384725]
[1760774880854,0.1,187.52,187.51,5.3330489]
[1760774881062,0.1,187.52,187.51,16.49384725]
[1760774881264,0.1,187.52,187.51,17.21384725]
[1760774881460,0.1,187.52,187.51,16.49384725]
[1760774882283,0.1,187.52,187.51,5.3330489]
[1760774883181,5.12755743,187.52,187.51,5.3330489]
[1760774883352,5.78755743,187.52,187.45,10.87647521]
[1760774883655,5.02755743,187.5,187.46,0.67931242]
[1760774883865,5.02755743,187.5,187.46,0.39498928]
[1760774884253,5.02755743,187.5,187.47,5.3341868]
[1760774884456,0.1,187.52,187.46,5.33438122]
[1760774884457,5.02755743,187.48,187.46,5.33438122]
[1760774884650,5.68755743,187.47,187.42,16.21182138]
[1760774884863,5.02755743,187.44,187.42,5.33534617]
[1760774885172,5.68755743,187.44,187.42,5.33534617]
[1760774885381,5.02755743,187.44,187.42,5.33534617]
[1760774885683,5.68755743,187.43,187.38,0.5336181]
[1760774885973,5.68755743,187.42,187.38,0.5336181]
[1760774886454,5.68755743,187.42,187.39,5.33620747]
[1760774886656,5.02755743,187.4,187.38,5.33659575]
[1760774887550,5.02755743,187.39,187.38,5.33659575]
[1760774887754,22.88,187.44,187.38,19.35846788]
[1760774887985,22.88,187.44,187.39,0.53364639]
[1760774888287,5.73755743,187.43,187.39,0.53364639]
[1760774888679,5.73755743,187.43,187.4,5.33617929]
[1760774890284,0.71,187.43,187.4,5.33617929]
[1760774890578,5.02755743,187.42,187.4,5.33617929]
[1760774891480,5.73755743,187.42,187.4,5.33617929]
[1760774891682,5.02755743,187.42,187.4,5.33617929]
[1760774892475,0.71,187.44,187.4,5.33617929]
[1760774892476,5.02755743,187.43,187.4,5.33617929]
[1760774892679,0.71,187.45,187.4,18.67662752]
[1760774892983,5.73755743,187.44,187.4,18.67662752]
[1760774893181,5.02755743,187.43,187.4,18.67662752]
[1760774893584,5.73755743,187.42,187.4,18.67662752]
[1760774893767,5.73755743,187.41,187.39,5.33641621]
[1760774893970,5.73755743,187.4,187.39,5.33641621]
[1760774894171,5.73755743,187.4,187.35,13.34339227]
[1760774894371,0.71,187.39,187.33,0.53381732]
[1760774894575,5.02755743,187.34,187.28,13.54849594]
[1760774894771,0.71,187.33,187.29,5.33931336]
[1760774894971,5.02755743,187.33,187.29,6.05931336]
[1760774895170,5.73755743,187.32,187.29,18.68759677]
[1760774895480,5.02755743,187.32,187.29,18.68759677]
[1760774895683,5.02755743,187.3,187.29,5.33931336]
[1760774895992,5.73755743,187.3,187.28,5.53959586]
[1760774896174,5.02755743,187.3,187.28,5.53959586]
[1760774896868,0.71,187.32,187.28,5.53959586]
[1760774897070,5.02755743,187.3,187.28,5.53959586]
[1760774898305,19.22589473,219.04,187.29,11.59647521]
[1760774898306,5.02755743,187.34,187.29,11.59647521]
[1760774898493,5.73755743,187.34,187.29,11.59647521]
[1760774898683,5.73755743,187.33,187.28,18.88859201]
[1760774898885,5.02755743,187.32,187.28,18.88859201]
[1760774899084,5.02755743,187.32,187.28,19.60859201]
[1760774899388,5.02755743,187.32,187.28,18.88859201]
[1760774899590,5.02755743,187.3,187.28,5.53959586]
[1760774900678,0.71,187.33,187.28,5.53959586]
[1760774900878,5.02755743,187.3,187.28,5.53959586]
[1760774901088,0.71,187.32,187.28,5.53959586]
[1760774901294,5.02755743,187.31,187.28,18.88859201]
[1760774902193,5.02755743,187.32,187.28,19.60859201]
[1760774902394,0.71,187.34,187.29,1.25393133]
[1760774902599,5.73755743,187.34,187.29,1.25393133]
[1760774903393,5.02755743,187.34,187.3,0.72]
[1760774903581,5.02755743,187.34,187.31,5.33874325]
[1760774903979,5.02755743,187.33,187.31,5.33874325]
[1760774904483,5.73755743,187.32,187.29,5.33931336]
[1760774904678,5.02755743,187.3,187.29,5.33931336]
[1760774904876,5.8365406,187.39,187.32,56.26244257]
[1760774905082,5.02755743,187.33,187.32,56.26244257]
[1760774906595,10.05511486,187.33,187.32,56.26244257]
[1760774906796,10.76511486,187.33,187.32,56.26244257]
[1760774908303,16.10328813,187.33,187.32,56.26244257]
[1760774908992,16.10328813,187.33,187.28,56.46244257]
[1760774909193,5.02755743,187.29,187.28,56.46244257]
[1760774910482,5.73755743,187.29,187.28,56.46244257]
[1760774910682,5.02755743,187.29,187.28,56.46244257]
[1760774912909,0.5,187.32,187.28,51.43488514]
[1760774913074,5.02755743,187.29,187.28,51.43488514]
[1760774913387,5.02755743,187.3,187.28,57.4944836]
[1760774913589,27.90755743,187.3,187.28,57.4944836]
[1760774913781,5.02755743,187.29,187.28,52.15488514]
[1760774914182,5.02755743,187.29,187.28,51.43488514]
[1760774916082,5.02755743,187.29,187.28,52.15488514]
[1760774916585,5.02755743,187.29,187.28,51.43488514]
[1760774916793,6.23755743,187.29,187.28,51.43488514]
[1760774916999,6.23755743,187.29,187.28,0.2]
[1760774918599,5.52755743,187.29,187.28,0.2]
[1760774918800,27.90755743,187.29,187.28,0.2]
[1760774919181,28.40755743,187.29,187.28,0.2]
[1760774919377,30.96939808,187.29,187.28,0.2]
[1760774920609,30.46939808,187.29,187.28,0.2]
[1760774921509,31.12939808,187.29,187.28,0.2]
[1760774921698,31.62939808,187.29,187.28,0.2]
[1760774922213,31.62939808,187.29,187.28,51.43488514]
[1760774922594,30.46939808,187.29,187.28,51.43488514]
[1760774923894,31.12939808,187.29,187.28,51.43488514]
[1760774924301,36.46871144,187.29,187.28,51.43488514]
[1760774924808,36.96871144,187.29,187.28,51.43488514]
[1760774925111,31.62939808,187.29,187.28,51.43488514]
[1760774926511,36.96871144,187.29,187.28,51.43488514]
[1760774928917,31.62939808,187.29,187.28,51.43488514]
[1760774930600,30.96939808,187.29,187.28,51.43488514]
[1760774932117,30.46939808,187.29,187.28,51.43488514]
[1760774933003,0.5,187.31,187.3,28.35488514]
[1760774933204,7.58939808,187.32,187.3,29.06488514]
[1760774933410,0.5,187.31,187.3,28.35488514]
[1760774933926,0.5,187.31,187.3,29.06488514]
[1760774934314,7.58939808,187.32,187.3,29.06488514]
[1760774934625,7.58939808,187.32,187.31,0.71]
[1760774934798,7.58939808,187.32,187.3,28.35488514]
[1760774935005,30.46939808,187.31,187.3,29.06488514]
[1760774935606,31.12939808,187.31,187.3,28.35488514]
[1760774935806,30.46939808,187.31,187.3,28.35488514]
[1760774936014,7.58939808,187.31,187.3,28.35488514]
[1760774936413,31.12939808,187.31,187.3,28.35488514]
[1760774936621,8.74939808,187.31,187.3,28.35488514]
[1760774937239,0.5,187.31,187.3,29.06488514]
[1760774937412,22.88,187.32,187.3,29.06488514]
[1760774937610,8.08939808,187.31,187.3,29.06488514]
[1760774937812,8.08939808,187.31,187.3,28.35488514]
[1760774939111,8.08939808,187.31,187.3,29.06488514]
[1760774939303,30.46939808,187.33,187.3,29.06488514]
[1760774939528,22.88,187.32,187.31,0.71]
[1760774939703,7.58939808,187.35,187.33,5.47488514]
[1760774939909,7.58939808,187.36,187.34,0.71]
[1760774940123,0.5,187.35,187.34,5.47488514]
[1760774940320,8.74939808,187.35,187.34,5.47488514]
[1760774940523,8.08939808,187.35,187.34,5.47488514]
[1760774940720,7.58939808,187.36,187.34,6.18488514]
[1760774940919,7.58939808,187.36,187.35,0.71]
[1760774941315,7.58939808,187.36,187.35,6.18488514]
[1760774941316,3.08322562,187.36,187.35,6.18488514]
[1760774941830,25.96322562,187.36,187.35,6.18488514]
[1760774942021,3.08322562,187.36,187.35,6.18488514]
[1760774942525,23.38,187.37,187.35,6.18488514]
[1760774942526,26.46322562,187.37,187.35,6.18488514]
[1760774943417,26.62322562,187.36,187.35,5.47488514]
[1760774943819,3.74322562,187.36,187.35,5.47488514]
[1760774944113,3.08322562,187.36,187.35,5.47488514]
[1760774945122,9.10254119,187.36,187.31,5.47488514]
[1760774945320,1.18,187.35,187.31,5.47488514]
[1760774945630,3.08522266,187.32,187.31,5.47488514]
[1760774947016,3.08522266,187.32,187.28,5.67488514]
[1760774947222,0.28432314,187.37,187.28,5.67488514]
[1760774947223,3.08522266,187.29,187.28,5.67488514]
[1760774947533,3.58522266,187.29,187.28,5.67488514]
[1760774948123,26.46522266,187.29,187.28,5.67488514]
[1760774948834,31.80453602,187.29,187.28,5.67488514]
[1760774949134,26.46522266,187.29,187.28,0.2]
[1760774949328,23.38,187.29,187.28,0.92]
[1760774949637,22.88,187.29,187.28,6.39488514]
[1760774950032,22.88,187.32,187.28,11.7344836]
[1760774950232,3.08522266,187.31,187.29,0.72]
[1760774950435,3.08522266,187.31,187.3,0.72]
[1760774951028,25.96522266,187.31,187.28,5.67488514]
[1760774951232,3.08522266,187.29,187.28,5.67488514]
[1760774951434,3.08522266,187.29,187.28,6.39488514]
[1760774952525,3.08522266,187.29,187.28,5.67488514]
[1760774952827,3.08522266,187.29,187.28,6.39488514]
[1760774953434,3.08522266,187.3,187.28,6.39488514]
[1760774953641,25.96522266,187.3,187.29,0.72]
[1760774954636,3.08522266,187.3,187.29,0.72]
[1760774955239,3.08522266,187.3,187.28,0.2]
[1760774955421,3.08522266,187.29,187.28,0.92]
[1760774955621,3.08522266,187.29,187.28,0.2]
[1760774956321,3.08522266,187.29,187.28,0.92]
[1760774956631,25.96522266,187.29,187.28,0.92]
[1760774956941,25.96522266,187.29,187.28,0.2]
[1760774957443,25.96522266,187.29,187.28,0.92]
[1760774957746,25.96522266,187.29,187.28,0.2]
[1760774958744,22.88,187.29,187.28,0.2]
[1760774959725,3.08522266,187.29,187.28,62.2]
[1760774960240,3.08522266,187.3,187.28,62.2]
[1760774960439,0.5,187.29,187.28,62.2]
[1760774961160,3.58522266,187.31,187.28,62.2]
[1760774961459,3.08522266,187.29,187.28,62.2]
[1760774961945,3.74522266,187.29,187.28,62.2]
[1760774962842,3.08522266,187.29,187.28,62.2]
[1760774963239,3.74522266,187.29,187.28,62.2]
[1760774963445,4.24522266,187.29,187.28,62.2]
[1760774964329,3.58522266,187.29,187.28,62.2]
[1760774968547,8.92453602,187.29,187.28,62.2]
[1760774968857,9.58453602,187.29,187.28,62.2]
[1760774969364,8.92453602,187.29,187.28,62.2]
[1760774973386,3.58522266,187.29,187.28,62.2]
[1760774973867,31.80453602,187.29,187.28,62.2]
[1760774974765,31.80584822,187.29,187.28,62.2]
[1760774977051,28.71931336,187.29,187.28,62.2]
[1760774977255,31.80584822,187.29,187.28,62.2]
[1760774979260,28.71931336,187.29,187.28,62.2]
[1760774979457,3.58653486,187.29,187.28,62.2]
[1760774981365,25.35516198,187.29,187.28,62.92]
[1760774981666,22.88,187.29,187.28,62.92]
[1760774981977,0.5,187.3,187.28,62.92]
[1760774982142,23.38,187.3,187.29,0.72]
[1760774982742,23.38,187.31,187.29,0.72]
[1760774982945,22.88,187.31,187.29,0.72]
[1760774983376,25.35516198,187.32,187.29,0.72]
[1760774983684,23.38,187.32,187.29,0.72]
[1760774984351,23.38,187.32,187.29,62.72]
[1760774984547,23.38,187.32,187.3,0.72]
[1760774984870,23.38,187.32,187.31,0.72]
[1760774985776,16.74296682,187.36,187.32,38.62]
[1760774985777,1.97516198,187.34,187.32,38.62]
[1760774986068,1.97516198,187.34,187.33,0.72]
[1760774987568,24.85516198,187.34,187.33,0.72]
[1760774988967,22.88,187.34,187.33,39.34]
[1760774989365,24.85516198,187.34,187.33,39.34]
[1760774989672,24.85516198,187.34,187.33,38.62]
[1760774989966,2.65516198,187.34,187.33,38.62]
[1760774990266,1.97516198,187.34,187.33,38.62]
[1760774990471,24.85516198,187.34,187.33,38.62]
[1760774990668,24.85516198,187.34,187.33,39.34]
[1760774991370,22.88,187.35,187.33,39.34]
[1760774991573,24.85516198,187.35,187.34,0.72]
[1760774991871,22.88,187.35,187.34,39.34]
[1760774992048,24.85516198,187.36,187.34,39.34]
[1760774992250,24.85516198,187.36,187.35,0.72]
[1760774993357,24.85516198,187.37,187.35,0.72]
[1760774993568,1.97516198,187.36,187.35,38.62]
[1760774994256,24.85516198,187.36,187.35,38.62]
[1760774994857,13.53163719,187.36,187.35,38.62]
[1760774995060,0.78,187.49,187.37,10.87647521]
[1760774995361,1.97516198,187.4,187.37,38.62]
[1760774995554,1.97516198,187.38,187.37,0.72]
[1760774997470,1.97516198,187.38,187.36,38.62]
[1760774997666,1.97516198,187.37,187.36,38.62]
[1760774998679,1.97516198,187.37,187.34,0.72]
[1760774998884,1.97516198,187.36,187.34,0.72]
[1760774999653,47.09486517,187.43,187.35,0.72]
[1760774999654,22.88,187.43,187.35,0.72]
[1760774999860,24.85516198,187.41,187.35,0.72]
[1760775000061,1.97516198,187.38,187.35,39.34]
[1760775000268,1.97516198,187.38,187.36,0.72]
[1760775000466,1.97516198,187.38,187.35,38.62]
[1760775000661,1.97516198,187.38,187.36,0.72]
[1760775000887,24.85516198,187.4,187.37,0.72]
[1760775001083,22.88,187.4,187.37,0.72]
[1760775001460,22.88,187.41,187.37,0.72]
[1760775001654,22.88,187.41,187.37,39.34]
[1760775001868,1.97516198,187.42,187.38,0.72]
[1760775002074,1.97516198,187.42,187.39,0.72]
[1760775002268,1.97516198,187.42,187.37,43.95691529]
[1760775002269,1.97516198,187.4,187.37,38.62]
[1760775002482,1.97516198,187.39,187.37,38.62]
[1760775002777,1.97516198,187.38,187.37,39.34]
[1760775003076,0.1,187.48,187.39,38.62]
[1760775003282,24.95516198,187.48,187.4,0.53361792]
[1760775003488,24.95516198,187.48,187.41,0.72]
[1760775003975,24.95516198,187.48,187.42,5.33560986]
[1760775004178,1.97516198,187.44,187.4,0.72]
[1760775004376,1.97516198,187.44,187.4,39.34]
[1760775004577,1.97516198,187.44,187.4,38.62]
[1760775004782,1.97516198,187.44,187.41,0.69]
[1760775005083,1.97516198,187.46,187.42,0.69]
[1760775005283,1.97516198,187.46,187.43,0.69]
[1760775005672,1.97516198,187.45,187.43,0.69]
[1760775005867,1.97516198,187.45,187.41,5.33589456]
[1760775006072,1.97516198,187.45,187.4,38.62]
[1760775006073,1.97516198,187.43,187.4,38.62]
[1760775006377,1.97516198,187.42,187.4,39.31]
[1760775007483,1.97516198,187.43,187.4,39.31]
[1760775009375,1.97516198,187.41,187.4,38.62]
[1760775009579,2.67516198,187.41,187.4,38.62]
[1760775011989,8.01105654,187.41,187.4,38.62]
[1760775012301,18.88753175,187.41,187.4,38.62]
[1760775012801,29.76400696,187.41,187.4,38.62]
[1760775013410,30.0483301,187.41,187.4,38.62]
[1760775013596,33.89863678,187.37,187.33,38.62]
[1760775013784,1.97516198,187.34,187.28,38.82]
[1760775013987,1.97516198,187.31,187.29,0.65]
[1760775014193,1.97516198,187.32,187.29,0.65]
[1760775014383,1.97516198,187.32,187.3,0.65]
[1760775014587,1.97516198,187.32,187.28,38.82]
[1760775014588,1.97516198,187.32,187.31,0.65]
[1760775014999,1.97516198,187.32,187.29,0.65]
[1760775015302,1.97516198,187.3,187.28,38.82]
[1760775015515,1.97516198,187.29,187.28,38.82]
[1760775015880,22.88,187.32,187.28,39.47]
[1760775016084,1.97516198,187.3,187.29,0.65]
[1760775016825,1.97516198,187.3,187.28,38.82]
[1760775016983,28.21851308,187.32,187.28,38.82]
[1760775017184,1.97516198,187.29,187.28,38.82]
[1760775017385,1.97516198,187.29,187.28,39.47]
[1760775018707,1.97516198,187.29,187.28,38.82]
[1760775018708,2.67516198,187.29,187.28,38.82]
[1760775018900,8.01447534,187.29,187.28,38.82]
[1760775019093,7.31447534,187.29,187.28,38.82]
[1760775019804,38.94726829,187.31,187.28,39.47]
[1760775020009,1.97516198,187.29,187.28,38.82]
[1760775021197,24.85516198,187.29,187.28,38.82]
[1760775021716,1.97516198,187.29,187.28,38.82]
[1760775022297,1.97516198,187.29,187.28,39.47]
[1760775022697,1.97516198,187.29,187.28,38.82]
[1760775023114,1.97516198,187.29,187.28,39.47]
[1760775025404,1.97516198,187.29,187.28,38.82]
[1760775025616,22.88,187.3,187.29,36.64483802]
[1760775026428,28.91881462,187.31,187.29,36.64483802]
[1760775026721,1.97516198,187.3,187.29,36.64483802]
[1760775028432,16.06640781,187.32,187.29,37.29483802]
[1760775028609,1.97516198,187.31,187.3,0.65]
[1760775028920,1.97516198,187.32,187.29,36.64483802]
[1760775029310,1.97516198,187.32,187.3,0.65]
[1760775030323,22.88,187.3,187.29,36.64483802]
[1760775030530,24.85516198,187.3,187.29,37.29483802]
[1760775030731,1.97516198,187.3,187.29,36.64483802]
[1760775030896,30.19419027,187.3,187.29,36.64483802]
[1760775031225,1.97516198,187.3,187.29,36.64483802]
[1760775032024,7.31419027,187.3,187.29,36.64483802]
[1760775032706,18.89066548,187.3,187.29,36.64483802]